[Event "Oceania Zonal Open 2023"]
[Site "Melbourne"]
[Date "2023.01.25"]
[Round "4.11"]
[White "Winkelman, Albert"]
[Black "Wang, Ruicheng"]
[Result "1/2-1/2"]
[ECO "D44"]
[WhiteElo "2272"]
[BlackElo "1891"]
[Annotator "TA"]
[PlyCount "114"]
[EventDate "2023.01.09"]
[EventType "swiss"]
[EventCountry "AUS"]
[SourceTitle "playchess.com"]
[Source "ChessBase"]
[SourceQuality "1"]
[TimeControl "5400+30"]

{[%evp 25,114,-16,-19,-114,-130,-260,-258,-240,-147,-110,-103,-144,-147,-146,-140,-129,-101,-79,0,-146,-134,-118,-122,-126,0,-79,-57,-82,-43,-132,-119,-353,-61,-241,-258,-264,-168,-904,-887,-802,-343,-339,-275,-270,-117,-370,-377,-453,-444,-440,-437,-416,-415,-411,-387,-377,-218,-210,-212,-428,-449,-417,0,0,0,-411,0,0,0,0,127,0,0,0,0,0,0,0,0,0,0,0,0,0,0,0,0,0,0,0,0]} 1. d4 {[%emt 0:00:04]} d5 {[%emt 0:00:04]} 2. c4 {[%emt 0:00:10]} c6 {[%emt 0:00:02]} 3. Nf3 {[%emt 0:00:09]} Nf6 {[%emt 0:00:02]} 4. Nc3 {[%emt 0:00:14]} e6 {[%emt 0:00:03]} 5. Bg5 {[%emt 0:00:34]} dxc4 {[%emt 0:00:06]} 6. e4 {[%emt 0:00:09]} b5 {[%emt 0:00:03]} 7. e5 {[%emt 0:00:07]} h6 {[%emt 0:00:07]} 8. Bh4 {[%emt 0:00:04]} g5 {[%emt 0:00:04]} 9. Nxg5 {[%emt 0:00:10]} hxg5 {[%emt 0:00:02]} 10. Bxg5 {[%emt 0:00:12]} Nbd7 {[%emt 0:00:03]} 11. exf6 {[%emt 0:00:30]} Bb7 {[%emt 0:00:04]} 12. Be2 {[%emt 0:14:56]} Qb6 {[%emt 0:09:41] 12...Nxf6 deserves study.} 13. O-O {[%emt 0:08:02]} O-O-O $1 {[%emt 0:01:35] [#]} 14. Bh5 $146 {[%emt 0:19:39] D44: Semi-Slav: Botvinnik System.} (14. Bf3 $1 $11 {remains equal.}) ({Predecessor:} 14. Bf3 Bh6 15. Be3 Nxf6 16. Qe2 Bxe3 17. fxe3 Qc7 18. g3 Rh6 19. Rf2 Rdh8 20. Raf1 a6 21. a4 b4 {1-0 Cebalo,M (2550)-Fercec,N (2487) Rijeka op 2007 (6)}) 14... c5 $1 $17 {[%emt 0:30:34]} 15. Bxf7 {[%emt 0:23:21]} (15. d5 $17 exd5 16. Re1 (16. Bxf7 d4 $17)) 15... cxd4 $19 {[%emt 0:01:01]} 16. Qg4 {[%emt 0:00:10] Black has a decisive advantage.} Bh6 {[%emt 0:42:27]} 17. Bxh6 {[%emt 0:15:51]} Rxh6 {[%emt 0:00:05]} 18. Bxe6 {[%emt 0:01:34][%cal Oc3b5] Threatens to win with Nxb5!} Rxf6 $1 {[%emt 0:06:54]} 19. Bxd7+ {[%emt 0:05:29]} Rxd7 {[%emt 0:00:06]} 20. Ne4 {[%emt 0:03:02]} Bxe4 {[%emt 0:02:23]} 21. Qxe4 {[%emt 0:00:08]} Re6 {[%emt 0:00:35]} ({Better is} 21... Qc6 $17 22. Qe1 Rg6) 22. Qa8+ {[%emt 0:00:49]} (22. Qf5 $11) 22... Kc7 $1 $17 {[%emt 0:01:02][%mdl 1024] Black has strong compensation.} 23. a4 {[%emt 0:00:18]} b4 {[%emt 0:00:19]} 24. a5 {[%emt 0:00:08]} Qb7 {[%emt 0:00:28]} (24... Qc6 $1 $17 {[%cal Rc6a8]} 25. Qf8 (25. Qxa7+ Kc8 $17) 25... Qd6) 25. Qg8 {[%emt 0:00:13] [#]} (25. Qf8 $1 $11) 25... Qc6 $1 {[%emt 0:00:27]} 26. Qg3+ {[%emt 0:03:49]} Qd6 {[%emt 0:03:24]} 27. Rfc1 {[%emt 0:01:00]} (27. Rac1 $15 c3 28. Qd3) 27... c3 {[%emt 0:00:38]} 28. bxc3 $2 {[%emt 0:00:09]} (28. Qd3 $17 {keeps fighting.}) 28... dxc3 $2 {[%emt 0:00:34]} (28... Qxg3 $19 29. fxg3 bxc3) 29. Qh4 $2 {[%emt 0:01:23]} ({White has to play} 29. Qg4 $1 $15 Rg6 30. Qc4+ Qc6 31. Qf4+ Qd6 32. Qc4+ Qc6 33. Qf4+ Kc8 34. g3) 29... Qc5 {[%emt 0:01:11]} 30. h3 {[%emt 0:02:24]} Red6 {[%emt 0:00:37] Strongly threatening ...b3.} 31. Ra4 $2 {[%emt 0:00:33]} (31. Rab1 Rd4 32. Qg3+ Qd6 33. Qg5) 31... Rd1+ $19 {[%emt 0:00:46]} 32. Kh2 {[%emt 0:00:28]} Qd6+ {[%emt 0:00:18]} (32... Rxc1 $142 33. Rxb4 Qd5) 33. g3 {[%emt 0:00:10] Black must now prevent Rxd1.} Rxc1 {[%emt 0:00:31]} 34. Rxb4 {[%emt 0:00:16] [#]} Rd1 {[%emt 0:00:43]} ({Stronger than} 34... Qd1 35. Qf4+ Kc6 36. Qc4+ Kd6 37. Qf4+ Kc6 38. Qc4+ Kd6 39. Qf4+ Kc6 $11) (34... Re1 $1 $19 35. Rc4+ Kb7 36. Rb4+ Ka8 37. Qh8+ Rd8 38. Qxc3 Qe6 39. Qf3+ Qd5) 35. Rc4+ $2 {[%emt 0:00:00][%mdl 8192]} (35. Qc4+ $17 {was the only defense.} Qc6 36. Qf4+ R1d6 37. Rc4) 35... Kb7 {[%emt 0:00:00] aiming for ...Rd4.} 36. a6+ {[%emt 0:00:49]} Qxa6 {[%emt 0:00:43]} (36... Kxa6 $2 {perishes.} 37. Rxc3 Rd4 38. Qg5 $19) 37. Qe4+ {[%emt 0:00:35]} R1d5 {[%emt 0:00:06]} 38. Rxc3 {[%emt 0:00:36]} Qb6 {[%emt 0:00:29] Prevents Rb3} 39. Qf3 {[%emt 0:00:30]} Qd4 {[%emt 0:00:43]} 40. Rb3+ {[%emt 0:00:24]} Kc7 {[%emt 0:00:07]} (40... Ka8 $142 {And now ...a5 would win.} 41. Ra3 Kb8 42. Qf8+ Rd8 43. Rb3+ Ka8) 41. Qf8 {[%emt 0:00:36]} Rd8 {[%emt 0:00:32] Against Qb8+} 42. Qe7+ {[%emt 0:00:28]} (42. Qf7+ {was the only chance.} R5d7 43. Qf3) 42... R5d7 {[%emt 0:00:34]} 43. Qe1 {[%emt 0:00:21]} Rd5 {[%emt 0:01:08] Dodges Qa5+} (43... Rf7 $19 44. Qa5+ Kd7 45. Rb7+ Ke8 46. Qb5+ Kf8 47. Rxf7+ Kxf7 48. Qh5+ Ke7 49. Qg5+ Kd7 50. Qf5+ Kc6) 44. Qe7+ $1 $11 {[%emt 0:00:17]} R5d7 $2 {[%emt 0:00:25][%mdl 8192]} (44... Kc6 $11 45. Qb7+ Kd6) 45. Qe1 $1 $19 {[%emt 0:00:32]} Qd2 $2 {[%emt 0:00:41]} (45... Rf7 $19 46. Qa5+ Kd7 47. Rb7+ Ke8 48. Qb5+ Kf8 49. Rxf7+ Kxf7 50. Qh5+ Ke7 51. Qg5+ Ke6 52. Qg6+ Ke7 53. Qg5+ Ke6 54. Qg6+ Kd5 55. Qf5+ Kc4) 46. Qe5+ $11 {[%emt 0:00:29]} Rd6 $1 {[%emt 0:00:30]} 47. Qc5+ {[%emt 0:00:30]} Kd7 {[%emt 0:00:05]} (47... Rc6 $11 48. Qxa7+ Kd6) 48. Qxa7+ {[%emt 0:00:06]} ({Only move:} 48. Rb7+ $16 Ke6 49. Qc4+ Kf6 50. Qf7+ Ke5 51. Qg7+ Kf5 52. Qg4+ Kf6 53. Qg7+ Kf5 54. Qg4+ Kf6 55. Qg7+ Kf5) 48... Ke6 {[%emt 0:00:32] ...R8d7 would be deadly. The position is equal.} 49. Re3+ {[%emt 0:00:20]} Kd5 {[%emt 0:00:31]} 50. Qb7+ {[%emt 0:00:13]} Kc5 {[%emt 0:00:12]} 51. Qc7+ {[%emt 0:00:52]} Kd5 {[%emt 0:00:09]} 52. Qb7+ {[%emt 0:00:45]} Kd4 {[%emt 0:01:28]} 53. Qa7+ {[%emt 0:01:19]} Kc4 {[%emt 0:00:19]} 54. Qa4+ {[%emt 0:00:39]} Kc5 {[%emt 0:00:37]} 55. Qa7+ {[%emt 0:00:34]} Rb6 {[%emt 0:00:34]} 56. Qc7+ {[%emt 0:00:36]} Rc6 {[%emt 0:00:19]} 57. Qa7+ {[%emt 0:00:29]} Rb6 {[%emt 0:00:40] Whites escaped into a draw.   Weighted Error Value: White=0.65/Black=0.65} 1/2-1/2

[Event "Oceania Zonal Open 2023"]
[Site "Melbourne"]
[Date "2023.01.26"]
[Round "4.11"]
[White "Stead, Kerry"]
[Black "Ruan, Harry"]
[Result "1/2-1/2"]
[ECO "D38"]
[WhiteElo "1952"]
[BlackElo "1858"]
[Annotator "TA"]
[PlyCount "119"]
[EventDate "2023.01.09"]
[EventType "swiss"]
[EventCountry "AUS"]
[SourceTitle "playchess.com"]
[Source "ChessBase"]
[SourceQuality "1"]
[TimeControl "5400+30"]

{[%evp 9,119,10,29,-22,-22,-23,-31,-26,-9,-89,-80,-77,-81,-81,-76,-137,-146,-161,-138,-152,-150,-150,-143,-202,-208,-215,-153,-210,-177,-170,-158,-158,-153,-148,-126,-128,-143,-118,-108,-145,-29,-142,-37,-130,-122,-139,-127,-193,-145,-156,-144,-112,-145,-310,-297,-269,-231,-215,0,-85,-85,-85,-41,-38,-20,-24,-43,-99,-86,-152,-77,-273,-204,-155,-73,-569,-523,-661,-651,-803,-792,-786,-769,-736,-615,-579,0,-55,0,0,0,-50,-56,-293,-210,-627,-623,-525,-495,-495,-495,-495,0,0,0,0,0,0,0,0,0,0]} 1. d4 {[%emt 0:00:02]} d5 {[%emt 0:00:06]} 2. c4 {[%emt 0:00:24]} e6 {[%emt 0:00:07]} 3. Nc3 {[%emt 0:00:09]} Nf6 {[%emt 0:00:05]} 4. Bg5 {[%emt 0:00:45]} Bb4 {[%emt 0:00:57]} 5. Nf3 {[%emt 0:02:12]} h6 {[%emt 0:00:09]} 6. Bf4 {[%emt 0:01:06] D38: Queen's Gambit Declined: Ragozin Defence (4 Nf3 Bb4).} (6. Qa4+ $142 Nc6 7. Bxf6 Qxf6 8. e3) 6... dxc4 $11 {[%emt 0:01:49]} 7. a3 {[%emt 0:01:19]} Bxc3+ {[%emt 0:00:41]} 8. bxc3 {[%emt 0:00:11] Black is slightly better.} b5 {[%emt 0:02:05] [#]} 9. g3 $146 {[%emt 0:00:33]} (9. a4 $11) ({Predecessor:} 9. a4 c6 10. Ne5 Nd5 11. Bd2 O-O 12. e4 Ne7 13. f4 f6 14. Nf3 Bb7 15. Qc2 {1-0 Pivovarov,M (1930)-Gerasimov,N (1596) Cheliabinsk Sveshnikov 60 op 2010 (3)}) 9... Bb7 {[%emt 0:00:39]} 10. Bg2 {[%emt 0:00:35]} Nbd7 {[%emt 0:01:26]} 11. O-O {[%emt 0:00:42]} Nb6 {[%emt 0:00:28]} 12. Re1 {[%emt 0:01:39]} (12. a4 $142) 12... Na4 $17 {[%emt 0:05:17]} 13. Bd2 {[%emt 0:03:23]} O-O {[%emt 0:01:47]} 14. Qb1 {[%emt 0:01:00]} a6 {[%emt 0:03:43]} 15. e4 {[%emt 0:00:18]} c5 {[%emt 0:01:45]} 16. e5 {[%emt 0:02:39]} (16. Qc2 $17 {is a better defense.}) 16... Nd5 $19 {[%emt 0:04:37]} 17. Qc1 {[%emt 0:00:50][%cal Od2h6]} Kh7 {[%emt 0:01:11]} 18. Nh4 {[%emt 0:01:06]} (18. Qb1+ $17 Kg8 19. Qe4) 18... Rh8 {[%emt 0:08:27]} 19. Qc2+ {[%emt 0:06:02]} g6 {[%emt 0:04:02]} 20. Be4 {[%emt 0:03:11][%cal Re4g6]} Rg8 {[%emt 0:00:36]} 21. Nf3 {[%emt 0:01:43]} Rb8 {[%emt 0:05:31]} 22. h4 {[%emt 0:00:51]} Ne7 {[%emt 0:00:21]} 23. h5 {[%emt 0:02:36][%cal Od2g5]} Bxe4 {[%emt 0:02:16]} 24. Rxe4 {[%emt 0:00:56] [#]} cxd4 {[%emt 0:03:19]} (24... gxh5 25. d5 $11 (25. Rh4+ Nf5 $11)) (24... g5 $1 $17 25. Nh2 Kg7) 25. cxd4 {[%emt 0:01:03]} (25. Rxd4 $11 Qc8 26. hxg6+ Rxg6 27. Nh4 {[%mdl 64] Pin}) 25... c3 {[%emt 0:01:18]} (25... gxh5 26. Rf4+ Kg7 27. Rh4 $15) (25... g5 $17 26. d5 Nxd5 27. Rxc4+ Kg7) 26. hxg6+ {[%emt 0:02:37]} ({Only move:} 26. Bg5 $1 $15) 26... Rxg6 $17 {[%emt 0:08:58]} 27. Be3 {[%emt 0:02:15]} (27. Bxc3 $2 Rc8 28. Rf4 (28. Re3 $2 Nd5 $19) 28... Rxc3 $19) 27... Nf5 {[%emt 0:00:21] Dodges Nh4} 28. Kg2 {[%emt 0:02:42]} (28. Rf4 $17) 28... Qg8 {[%emt 0:09:04]} (28... Nb6 $19 {Strongly threatening ...Nd5.} 29. Rh1 Qd5) 29. Bf4 {[%emt 0:03:50]} Nb6 {[%emt 0:04:36]} 30. Rh1 {[%emt 0:03:42]} (30. Qxc3 Nd5 31. Qe1 Rg4 $17) 30... Nd5 {[%emt 0:02:05] Excellent horsemanship.} 31. Qc1 $2 {[%emt 0:01:37]} (31. Nh4 $17 {was called for.} Nxf4+ {[%mdl 64] Remove Defender} 32. Rxf4 Rxg3+ 33. Kf1) 31... Qg7 {[%emt 0:07:13]} 32. Nh4 {[%emt 0:08:28]} Nxh4+ {[%emt 0:03:40]} 33. Rxh4 {[%emt 0:00:26]} Nxf4+ {[%emt 0:00:10]} (33... a5 $19 {aiming for ...b4.} 34. Bxh6 Rxh6) 34. Rexf4 {[%emt 0:00:37]} (34. Rhxf4 $11 Rc8 35. Rf3) 34... Rc8 {[%emt 0:00:44] White must now prevent ...c2.} 35. Qc2 {[%emt 0:00:35]} a5 {[%emt 0:00:46]} 36. Rh1 {[%emt 0:12:27]} b4 {[%emt 0:01:02]} 37. axb4 {[%emt 0:00:36]} axb4 {[%emt 0:00:04] ...Kg8 is the strong threat.} 38. Rb1 {[%emt 0:00:21]} (38. Qa4 $1 $15) 38... Rb8 $36 {[%emt 0:01:13][%mdl 2048] Keeping White busy.} 39. Rf3 {[%emt 0:02:30] [#]} (39. Qa4 $142 Qf8 40. Qa7) 39... Qf8 {[%emt 0:01:36]} (39... Qg8 $142 $1 {[%cal Rg8e8] And now ...Qe8 would win.} 40. Qd3 Kg7) 40. Qe4 $2 {[%emt 0:01:09]} (40. d5 $17 {only move.} Kg7 41. d6) 40... Kg7 {[%emt 0:01:42]} 41. d5 {[%emt 0:03:13]} Qc5 {[%emt 0:05:03]} ({Black should try} 41... exd5 42. Qxd5 Re6) 42. Qf4 {[%emt 0:01:26][%mdl 8192]} (42. Rd1 $17) 42... Rb7 $19 {[%emt 0:00:24]} (42... exd5 43. Qxf7+ Kh8 44. Qxg6) 43. dxe6 {[%emt 0:02:38]} Rxe6 {[%emt 0:01:41] Threatens to win with ...c2.} 44. Qg4+ {[%emt 0:03:39]} Rg6 {[%emt 0:00:37]} 45. Qe4 {[%emt 0:00:38]} Qc6 {[%emt 0:03:08]} 46. Qc2 {[%emt 0:13:52]} Rb6 {[%emt 0:00:14]} 47. Rd1 {[%emt 0:02:50]} Ra6 $2 {[%emt 0:01:38]} (47... Re6 $19 48. Qf5 Rb7) 48. Qb3 {[%emt 0:00:23]} (48. Rd4 $11) 48... Ra7 {[%emt 0:01:49]} (48... Qc7 $1 $15 49. Qxb4 c2) 49. Qxb4 $11 {[%emt 0:00:24][%cal Od1d8] Hoping for Rd8!} c2 {[%emt 0:00:10]} 50. Rc1 {[%emt 0:00:19]} (50. Rd8 $1 $11 Kh7 51. Qf8) 50... Rc7 $1 $15 {[%emt 0:01:02]} 51. Qb3 $2 {[%emt 0:00:46]} ({White should play} 51. Qd4 $15) 51... Rg5 {[%emt 0:00:32]} 52. Kg1 $2 {[%emt 0:04:48]} (52. e6 fxe6 53. Kg1) 52... Rxe5 $19 {[%emt 0:00:13]} 53. Rf4 {[%emt 0:00:28]} Rce7 {[%emt 0:01:21]} 54. Qb2 {[%emt 0:01:34]} f6 {[%emt 0:02:39]} 55. Rg4+ {[%emt 0:00:17]} Kf7 $2 {[%emt 0:00:03]} (55... Kh8 $19 {( -> ...Re1+)} 56. Qb4 Qf3) 56. Qa2+ $11 {[%emt 0:00:36] The position is equal.} R7e6 {[%emt 0:00:12]} 57. Qa7+ $1 {[%emt 0:00:24]} Re7 {[%emt 0:00:04]} (57... Kf8 $5 58. Qg7+ $8 Ke8 59. Qg8+ (59. Qxh6 $2 {gets mated.} Re1+ 60. Rxe1 Rxe1+ 61. Kh2 Rh1#) (59. Qg6+ Kd8 $11) 59... Kd7 60. Rd4+ Ke7 61. Qh7+ Ke8 62. Qg6+ (62. Qxh6 $2 Re1+ 63. Rxe1 Rxe1+ 64. Kh2 Rh1#) 62... Ke7 63. Qg7+ (63. Qxh6 $2 {is a self mate.} Re1+ 64. Rxe1 Rxe1+ 65. Kh2 Rh1#) (63. Qh7+ Ke8 $11) 63... Ke8 64. Qh8+ (64. Qxh6 $2 Re1+ 65. Rxe1 Rxe1+ 66. Kh2 Rh1#) 64... Kf7 65. Qh7+ (65. Qxh6 $2 Re1+ 66. Rxe1 Rxe1+ 67. Kh2 Rh1#) 65... Ke8 66. Qg6+ (66. Qxh6 $2 Re1+ 67. Rxe1 Rxe1+ 68. Kh2 Rh1#) 66... Ke7 $11) 58. Qa2+ {[%emt 0:00:10]} R7e6 {[%emt 0:00:04]} 59. Qa7+ $1 {[%emt 0:00:06]} Re7 {[%emt 0:00:06]} 60. Qa2+ {[%emt 0:02:00] Weighted Error Value: White=0.51/Black=0.44} 1/2-1/2

[Event "Oceania Zonal Open 2023"]
[Site "Melbourne"]
[Date "2023.01.25"]
[Round "4.12"]
[White "Kethro, Michael"]
[Black "Ning, Isabelle Yixuan"]
[Result "1-0"]
[ECO "E94"]
[WhiteElo "2149"]
[BlackElo "1949"]
[Annotator "TA"]
[PlyCount "62"]
[EventDate "2023.01.09"]
[EventType "swiss"]
[EventCountry "AUS"]
[SourceTitle "playchess.com"]
[Source "ChessBase"]
[SourceQuality "1"]
[TimeControl "5400+30"]

{[%evp 18,62,64,54,64,72,101,72,93,70,68,70,75,77,76,81,79,78,77,87,167,171,305,320,345,352,336,254,331,223,258,245,251,247,397,420,581,455,685,642,749,685,646,643,608,596,580]} 1. d4 {[%emt 0:00:04]} Nf6 {[%emt 0:00:04]} 2. c4 {[%emt 0:01:00]} g6 {[%emt 0:00:17]} 3. Nc3 {[%emt 0:00:17]} Bg7 {[%emt 0:00:18]} 4. e4 {[%emt 0:00:16]} d6 {[%emt 0:00:08]} 5. Nf3 {[%emt 0:00:13]} O-O {[%emt 0:00:10]} 6. Be2 {[%emt 0:00:44]} Nbd7 {[%emt 0:00:29]} 7. O-O {[%emt 0:00:46]} e5 {[%emt 0:00:05]} 8. Be3 {[%emt 0:00:42]} Qe7 {[%emt 0:00:13]} 9. Qc2 {[%emt 0:02:06]} c6 {[%emt 0:01:18]} 10. Rad1 {[%emt 0:01:40]} h6 {[%emt 0:02:47] 10...h6 is better than 10...exd4. E94: King's Indian: Classical: 6 Be2 e5 7 0-0: Various Black 7th moves.} 11. d5 {[%emt 0:02:30]} c5 {[%emt 0:01:22] [#]} 12. Nd2 $146 {[%emt 0:05:13] White has more active pieces. The black rooks are badly placed.} ({Predecessor:} 12. Ne1 Kh8 13. Nd3 Ng8 14. a3 b6 15. b4 Ba6 16. bxc5 Nxc5 17. Nb4 Bc8 18. a4 {0-1 Shankland,S (2731)-Rapport,R (2735) Saint Louis Champions Showdown blitz 2019 (2.5)}) 12... Nb6 {[%emt 0:08:34] White is better.} 13. a3 {[%emt 0:04:34]} Ng4 {[%emt 0:02:56]} 14. Bxg4 $1 {[%emt 0:01:57]} Bxg4 {[%emt 0:00:08] White stays focused until the end.} 15. Rb1 {[%emt 0:06:18]} f5 {[%emt 0:09:33] [#] aiming for ...f4.} 16. f3 {[%emt 0:01:00]} Bh5 {[%emt 0:01:52]} 17. b4 {[%emt 0:02:13] Threatens to win with bxc5.} f4 {[%emt 0:02:07]} 18. Bf2 {[%emt 0:02:47]} cxb4 {[%emt 0:04:37]} (18... Nd7 $16) 19. axb4 $18 {[%emt 0:02:06]} Rac8 {[%emt 0:07:00]} (19... Nc8 {was necessary.} 20. c5 g5) 20. Nb5 {[%emt 0:11:14]} Nd7 {[%emt 0:09:45]} 21. Nxa7 {[%emt 0:02:44]} ({Not} 21. Bxa7 b6 22. Ra1 Rf6 $18) 21... Ra8 {[%emt 0:02:38]} 22. Nb5 {[%emt 0:02:12][%cal Ba7b5,Bb5c7,Bc7e6][%mdl 32] And now c5 would win.} g5 {[%emt 0:06:40]} 23. Nc7 {[%emt 0:06:51]} Rac8 {[%emt 0:05:15]} 24. Ne6 {[%emt 0:02:29]} Rf6 {[%emt 0:00:56]} 25. c5 {[%emt 0:06:35]} g4 {[%emt 0:01:32]} (25... Rxe6 $142 26. dxe6 Qxe6) 26. Bh4 {[%emt 0:07:50][%mdl 64] [#] Skewer} g3 {[%emt 0:02:36]} 27. h3 {[%emt 0:04:21] White is clearly winning.} dxc5 {[%emt 0:03:32]} (27... Bf7 $142 28. Nxg7 Kxg7 29. Bxf6+ Kxf6) 28. bxc5 {[%emt 0:01:52]} Nxc5 {[%emt 0:01:44]} 29. Rfc1 {[%emt 0:02:37]} b6 {[%emt 0:01:11]} 30. Nxg7 {[%emt 0:02:09]} Qxg7 {[%emt 0:00:35]} 31. Bxf6 {[%emt 0:00:53]} Qxf6 {[%emt 0:00:09] Weighted Error Value: White=0.26 (precise) /Black=0.61} 1-0

[Event "Oceania Zonal Open 2023"]
[Site "Melbourne"]
[Date "2023.01.26"]
[Round "4.12"]
[White "Saisiddharth Naraharasetty"]
[Black "Morris, James"]
[Result "0-1"]
[ECO "B40"]
[WhiteElo "1769"]
[BlackElo "2456"]
[Annotator "TA"]
[PlyCount "106"]
[EventDate "2023.01.09"]
[EventType "swiss"]
[EventCountry "AUS"]
[SourceTitle "playchess.com"]
[Source "ChessBase"]
[SourceQuality "1"]
[TimeControl "5400+30"]

{[%evp 9,106,12,8,0,6,-2,1,-33,-6,-22,-20,-21,-15,-19,-18,-14,-4,-45,-12,-22,-9,-8,48,47,40,20,25,18,27,-17,-8,0,-17,-45,0,0,0,-52,-50,-76,-39,-70,-70,-70,-70,-77,-77,-81,-78,-85,-72,-71,-18,-64,-64,-64,-64,-64,-54,-161,-161,-161,-161,-184,-92,-92,-89,-84,-64,-64,-64,-64,-64,-64,-64,-64,-64,-64,-64,-64,-64,-64,-64,-64,-64,-64,-64,-87,-87,-151,-144,-1874,-1587,-6061,-4679,-29981,-29982,-29979,-29978]} 1. e4 {[%emt 0:00:05]} c5 {[%emt 0:00:10]} 2. Nf3 {[%emt 0:00:14]} e6 {[%emt 0:00:48]} 3. b3 {[%emt 0:00:22]} a6 {[%emt 0:00:53]} 4. Bb2 {[%emt 0:03:49]} Nc6 {[%emt 0:01:29]} 5. Be2 {[%emt 0:01:53]} Qc7 {[%emt 0:03:36]} 6. O-O {[%emt 0:10:07] B40: Sicilian: 2...e6, Unusual lines.} Nf6 {[%emt 0:01:10]} 7. d3 {[%emt 0:01:53]} Be7 {[%emt 0:00:35]} 8. Re1 {[%emt 0:00:33] The position is equal.} O-O {[%emt 0:03:47]} 9. Nbd2 {[%emt 0:02:07]} d5 {[%emt 0:01:36]} 10. exd5 {[%emt 0:01:24]} Nxd5 {[%emt 0:00:23]} 11. Bf1 {[%emt 0:02:10] [#]} Rd8 $146 {[%emt 0:02:36]} ({Predecessor:} 11... Bf6 12. Bxf6 Nxf6 13. Qc1 b6 14. Qb2 Bb7 15. Rad1 Rad8 16. c3 Rd5 17. a3 a5 {0-1 Galego,L (2330)-Horvath,C (2345) Oakham YM 1986 (4)}) 12. g3 {[%emt 0:05:43]} b5 {[%emt 0:06:10]} 13. Ne4 {[%emt 0:04:17]} h6 {[%emt 0:07:56]} 14. Qe2 {[%emt 0:05:54]} Nb6 {[%emt 0:16:19]} 15. c4 {[%emt 0:13:49][%cal Bc2c4,Bc4c5][%mdl 32]} Nd4 {[%emt 0:05:16]} (15... e5 $11) 16. Nxd4 $14 {[%emt 0:04:30]} cxd4 {[%emt 0:00:06] [#]} 17. c5 $1 {[%emt 0:00:36]} Nd5 {[%emt 0:06:39][%cal Bb6d5,Bd5b4,Bb4d3][%mdl 32]} 18. Bxd4 {[%emt 0:02:38]} Nb4 {[%emt 0:05:44]} 19. Bc3 {[%emt 0:13:43]} (19. Be3 $5) 19... Nxd3 {[%emt 0:12:35]} 20. Red1 {[%emt 0:02:24]} (20. Qg4 $2 e5 21. Qf3 Nxe1 22. Rxe1 Be6 $19) 20... Nxc5 {[%emt 0:00:04]} 21. Rxd8+ {[%emt 0:05:45]} (21. Qg4 e5 22. Qe2 Rxd1 23. Rxd1 f6 24. Nxc5 Bxc5 $17) 21... Qxd8 {[%emt 0:01:11]} 22. Nxc5 {[%emt 0:01:49]} Bxc5 {[%emt 0:00:05]} 23. Bg2 {[%emt 0:00:26] Inhibits Bb7.} (23. Rd1 $1 $11 Qc7 24. b4) 23... Ra7 $15 {[%emt 0:00:24][%cal Ba8a7,Ba7d7,Bd7d4,Bd4a4][%mdl 32]} 24. Rc1 {[%emt 0:01:23][%cal Oc3g7]} Bf8 {[%emt 0:01:44]} (24... Rc7 $5 {[%cal Rc5d4]}) 25. Ba5 {[%emt 0:01:25][%mdl 64] [#] Deflection} Qxa5 {[%emt 0:01:09]} 26. Rxc8 {[%emt 0:00:07]} Rd7 {[%emt 0:02:05] Wards off Qd3} 27. Rc2 {[%emt 0:01:20] Repels Rd2} g6 {[%emt 0:00:11]} 28. h4 {[%emt 0:00:27]} h5 {[%emt 0:00:28]} 29. Be4 {[%emt 0:02:30][%cal Oe4g6]} Qd8 {[%emt 0:01:45]} 30. Kg2 {[%emt 0:00:52]} Bg7 {[%emt 0:02:20]} (30... Rd6 $17) 31. a4 {[%emt 0:01:36]} (31. Bxg6 $1 $11 {might be stronger.} fxg6 32. Qxe6+ Kf8 33. Qxa6) 31... Rd4 {[%emt 0:00:05]} 32. Bb7 {[%emt 0:00:57] Rc8 would be deadly.} Qb6 {[%emt 0:00:53]} (32... bxa4 $2 33. Rc8 (33. Bxa6 $2 Qd5+ 34. Qf3 axb3 $19) 33... axb3 34. Rxd8+ Rxd8 35. Qxa6 $18) 33. Rc8+ {[%emt 0:02:14]} Bf8 $1 {[%emt 0:00:41]} 34. Bf3 {[%emt 0:03:25]} (34. Bc6 $1 $15) 34... bxa4 $19 {[%emt 0:01:49]} 35. bxa4 {[%emt 0:00:56]} Rxa4 {[%emt 0:02:24]} 36. Qd2 {[%emt 0:01:55]} Rd4 {[%emt 0:00:46]} (36... Qb4 37. Qd7 Ra5 38. Be2 $17) ({Better is} 36... a5 $19 37. Bc6 (37. Qh6 $2 Qc5 $19) 37... Rd4) 37. Qe3 $17 {[%emt 0:00:57][%cal Of3h5]} ({Not} 37. Qh6 $2 Rd8 38. Qc1 Qd4 $19) 37... a5 {[%emt 0:06:28]} 38. Ra8 {[%emt 0:01:11][%cal Of3h5]} ({Don't go for} 38. Qh6 $2 Rd8 39. Rxd8 Qxd8 $19) 38... Rb4 {[%emt 0:01:41]} 39. Qxb6 {[%emt 0:00:28]} ({Avoid the trap} 39. Qh6 $2 Qc5 40. Qg5 Qxg5 41. hxg5 Rb5 $19) 39... Rxb6 {[%emt 0:00:01]} 40. Rxa5 $15 {[%emt 0:00:14][%mdl 4096] Endgame KRB-KRB} Rb2 {[%emt 0:00:01]} 41. Re5 {[%emt 0:00:21]} Bg7 {[%emt 0:00:10]} 42. Re2 {[%emt 0:00:08]} Rb3 {[%emt 0:00:03]} 43. Rd2 {[%emt 0:00:24]} Be5 {[%emt 0:00:25]} 44. Bd1 {[%emt 0:00:10]} Ra3 {[%emt 0:00:06]} 45. Be2 {[%emt 0:00:28]} Kf8 {[%emt 0:00:24]} 46. Rd3 {[%emt 0:00:19]} Ra2 {[%emt 0:00:02]} 47. Kf3 {[%emt 0:00:11]} Ke7 {[%emt 0:00:07] Black is more active.} 48. Rb3 {[%emt 0:01:00]} Bd4 {[%emt 0:00:20]} 49. Rd3 {[%emt 0:00:56]} (49. Rb4 $142 Rd2 50. Kg2) 49... e5 $17 {[%emt 0:00:07][%cal Be6e5,Be5e4][%mdl 32] ...Bc5 is the strong threat.} 50. Rb3 $2 {[%emt 0:00:51][%mdl 8192] Loses the game.} (50. Rd1 $17) 50... f5 $19 {[%emt 0:00:37] And now ...e4+ would win.} 51. Rb7+ {[%emt 0:00:30]} Kd6 {[%emt 0:00:39]} 52. Rf7 {[%emt 0:01:14]} e4+ {[%emt 0:00:06][%mdl 64] Deflection} 53. Kf4 {[%emt 0:00:05]} Rxe2 {[%emt 0:00:06] Weighted Error Value: White=0.45/Black=0.10 (very precise)} 0-1